[Event "14. Deizisauer Herbstopen 2019"]
[Site "Deizisau"]
[Date "2019.10.26"]
[Round "2.7"]
[White "Doeserich, Juergen"]
[Black "Reimche, Vadim"]
[Result "1-0"]
[ECO "A61"]
[WhiteElo "1975"]
[BlackElo "2080"]
[Annotator "NA"]
[PlyCount "77"]
[EventDate "2019.10.25"]
[EventType "swiss"]
[EventCountry "GER"]
[SourceTitle "playchess.com"]
[Source "ChessBase"]
[SourceQuality "1"]
[TimeControl "5400+30"]

{[%evp 16,76,46,34,56,-18,47,50,120,125,154,151,159,155,167,175,160,170,168,168,167,149,164,175,166,200,209,191,197,244,477,552,32767,32767,32767,32767,32767,32767,32767,32767,32767,32767,615,32767,32767,520,508,32767,32767,705,32767,479,32767,32767,29991,32767,32767,32767,32767,32767,32767,29998,29998]} 1. d4 {[%emt 0:00:00]} Nf6 {[%emt 0:00:00]} 2. c4 {[%emt 0:00:00]} c5 {[%emt 0:00:00]} 3. d5 {[%emt 0:00:00]} e6 {[%emt 0:00:00]} 4. Nc3 {[%emt 0:00:58]} exd5 {[%emt 0:00:02]} 5. cxd5 {[%emt 0:00:15]} d6 {[%emt 0:00:06]} 6. Nf3 {[%emt 0:00:30]} g6 {[%emt 0:00:13]} 7. Bf4 {[%emt 0:00:37]} a6 {[%emt 0:00:27]} 8. a4 {[%emt 0:00:21]} Bg7 {[%emt 0:00:33]} 9. h3 {[%emt 0:02:42] A61: Modern Benoni: Nf3 without early e4} O-O {[%emt 0:00:21]} 10. Nd2 {[%emt 0:01:45]} (10. Bh2 $14) (10. e3 Ne8 11. Be2 Nd7 12. a5 Qe7 13. O-O Ne5 14. Bxe5 Bxe5 15. Nxe5 Qxe5 16. Qd2 Bd7 17. f4 Qg7 18. Bc4 {½-½ (35) Lysyj,I (2596)-Indjic,A (2628) Mali Losinj 2019}) 10... Re8 {[%emt 0:05:54]} (10... Nh5 $15 11. Bh2 f5) 11. e3 {[%emt 0:04:01]} Nh5 {[%emt 0:03:58]} (11... Nfd7 $14) 12. Bh2 {[%emt 0:01:02]} f5 {[%emt 0:05:50]} 13. Be2 {[%emt 0:03:04]} Nf6 {[%emt 0:08:54]} 14. Nc4 {[%emt 0:07:21]} Bf8 {[%emt 0:07:39]} 15. a5 $146 {[%emt 0:01:27]} ({Predecessor:} 15. O-O Qc7 16. a5 Nbd7 17. Na4 Ne5 18. Nab6 {1-0 (46) Simantsev,M (2451)-Vorobjov,D (2164) Moscow 2014}) 15... Qc7 {[%emt 0:03:00]} 16. Nb6 {[%emt 0:04:56]} Ra7 {[%emt 0:00:22]} 17. O-O {[%emt 0:01:01]} Ne4 {[%emt 0:05:51]} 18. Qc2 {[%emt 0:10:03]} Nd7 {[%emt 0:05:09]} 19. Nca4 {[%emt 0:12:24]} Ne5 {[%emt 0:07:10] [#]} 20. b4 $1 {[%emt 0:10:27]} Bd7 {[%emt 0:07:24]} 21. Rfc1 {[%emt 0:03:13]} Bxa4 {[%emt 0:04:12]} 22. Qxa4 {[%emt 0:00:43]} Re7 $2 {[%emt 0:04:52]} (22... Qd8 23. f3 Nf6) 23. f3 {[%emt 0:04:25]} Nf6 {[%emt 0:06:03]} 24. bxc5 {[%emt 0:02:46]} dxc5 {[%emt 0:10:47]} 25. d6 {[%emt 0:01:07]} Qxd6 {[%emt 0:00:17]} 26. Nc8 {[%emt 0:00:42]} Qb8 {[%emt 0:00:29]} 27. Nxe7+ {[%emt 0:02:32]} Bxe7 {[%emt 0:00:10]} 28. Rab1 {[%emt 0:04:15]} Bd6 {[%emt 0:01:29]} 29. Bxe5 {[%emt 0:01:42]} Bxe5 {[%emt 0:00:22]} 30. Qc4+ {[%emt 0:00:26]} Kg7 {[%emt 0:00:33]} 31. Qxc5 {[%emt 0:00:38]} f4 {[%emt 0:08:10]} 32. Rb6 {[%emt 0:03:30]} Kh6 {[%emt 0:01:28]} 33. Qe7 {[%emt 0:02:43]} (33. Re6 $142) 33... Nh5 {[%emt 0:01:21]} 34. Rc5 {[%emt 0:02:42]} Ng3 {[%emt 0:03:10]} 35. Rxe5 {[%emt 0:03:20]} Nxe2+ {[%emt 0:00:15]} 36. Kf2 {[%emt 0:00:37]} Ng3 {[%emt 0:00:37]} 37. Qh4+ {[%emt 0:00:20]} Kg7 {[%emt 0:00:03]} 38. Re7+ {[%emt 0:00:24]} Kf8 {[%emt 0:00:09]} 39. Qf6+ {[%emt 0:00:09]} 1-0

[Event "14. Deizisauer Herbstopen 2019"]
[Site "Deizisau"]
[Date "2019.10.26"]
[Round "2.8"]
[White "Kraft, Julian"]
[Black "Coellen, Eike"]
[Result "1-0"]
[ECO "B47"]
[WhiteElo "2062"]
[BlackElo "1954"]
[Annotator "NA"]
[PlyCount "99"]
[EventDate "2019.10.25"]
[EventType "swiss"]
[EventCountry "GER"]
[SourceTitle "playchess.com"]
[Source "ChessBase"]
[SourceQuality "1"]
[TimeControl "5400+30"]

{[%evp 8,92,16,14,52,32767,32767,33,32767,18,36,-2,24,4,13,0,30,37,36,22,65,63,62,3,189,91,102,135,491,511,712,698,651,663,32767,32767,32767,329,32767,32767,300,31,41,32767,29975,-395,-218,32767,32767,32767,32767,-514,32767,32767,32767,32767,32767,32767,32767,32767,-682,32767,32767,-799,-868,32767,32767,-1051,-1096,-1081,32767,32767,-625,32767,32767,32767,32767,32767,32767,32767,32767,32767,32767,32767,32767,32767,29995]} 1. e4 {[%emt 0:00:00]} c5 {[%emt 0:00:00]} 2. Nc3 {[%emt 0:00:00]} Nc6 {[%emt 0:00:00]} 3. Nf3 {[%emt 0:00:00]} e6 {[%emt 0:00:00]} 4. d4 {[%emt 0:00:00]} cxd4 {[%emt 0:00:00]} 5. Nxd4 {[%emt 0:00:00]} Qc7 {[%emt 0:00:04]} 6. g3 {[%emt 0:03:33]} a6 {[%emt 0:02:30]} 7. Bg2 {[%emt 0:01:28]} Nf6 {[%emt 0:00:38]} 8. O-O {[%emt 0:02:56]} Be7 {[%emt 0:03:26]} 9. Kh1 {[%emt 0:04:55]} O-O {[%emt 0:04:21]} 10. f4 {[%emt 0:06:07]} d6 {[%emt 0:00:59]} 11. Be3 {[%emt 0:08:15]} Bd7 {[%emt 0:02:38]} 12. Nb3 {[%emt 0:12:57] B80: Sicilian Scheveningen: 6 g3 and 6 Be3, including English Attack} Rac8 {[%emt 0:03:01]} (12... b5 13. g4 b4 14. Na4 d5 15. Nb6 Rad8 16. exd5 Nxd5 17. Nxd5 exd5 18. Qf3 Na5 19. Nxa5 Qxa5 {½-½ (31) Guseinov,G (2609)-Mchedlishvili,M (2656) Tbilisi 2012}) 13. g4 {[%emt 0:07:13]} Na5 {[%emt 0:08:33]} 14. g5 $146 {[%emt 0:17:15]} ({Predecessor:} 14. Nxa5 Qxa5 15. g5 Ne8 16. Qe1 g6 17. Nd5 Qd8 18. Bb6 Nc7 19. Nxc7 Rxc7 20. Qa5 {1-0 (20) Quinonero Simon,J (2105)-Robles Sanchez,A Barcelona 2000}) 14... Ne8 {[%emt 0:02:12]} 15. Qh5 {[%emt 0:04:01]} f5 $2 {[%emt 0:08:48]} (15... g6 $11 {and Black has nothing to worry.} 16. Qh6 Nxb3 17. cxb3 (17. axb3 f5 $11) 17... f5) 16. exf5 {[%emt 0:01:41]} (16. gxf6 $1 $18 Bd8 17. e5 Nxb3 18. axb3) 16... Rxf5 {[%emt 0:01:49] [#]} 17. Nd4 $1 {[%emt 0:04:39]} Rf8 $2 {[%emt 0:05:04] [#]} (17... g6 $16 18. Qh3 (18. Nxf5 gxh5 19. Nxe7+ Kf8 $16) 18... Ng7) 18. f5 $1 {[%emt 0:10:43]} exf5 {[%emt 0:09:50]} 19. Bd5+ {[%emt 0:07:05]} Kh8 {[%emt 0:00:18]} 20. Rf3 {[%emt 0:01:19]} ({Less strong is} 20. g6 Nf6 $14) 20... g6 {[%emt 0:05:51]} 21. Qh6 {[%emt 0:00:38]} Ng7 {[%emt 0:01:22] [#]} 22. Ndb5 $2 {[%emt 0:03:09]} (22. Rh3 $1 {[%mdl 512] mates} Nh5 23. Rxh5 gxh5 24. g6 Rf7 25. Bxf7 Qc6+ 26. Nxc6 Bxc6+ {[#]} 27. Kg1 $1 {[%mdl 512]} h4 28. Qxh7#) 22... Bxg5 {[%emt 0:06:32]} 23. Qxg5 {[%emt 0:00:24]} axb5 {[%emt 0:01:58] [#]} 24. Rh3 $2 {[%emt 0:01:14]} (24. Qh6 $1 $18 {[%mdl 512]} f4 {[#]} 25. Bd4 $1 {[%mdl 512]} (25. Rxf4 Rxf4 26. Qxf4 Nc4 $11) (25. Bxf4 Nf5 $17)) 24... f4 $1 {[%emt 0:04:04]} 25. Rh6 {[%emt 0:01:56]} Nf5 $2 {[%emt 0:05:54] [#]} (25... Bf5 $14 26. Qxf4 Ne6) 26. Qxg6 $4 {[%emt 0:00:19]} ({Don't go for} 26. Qxf4 $2 Nc4 $19) (26. Qe7 $1 {[%mdl 512] mates} Be6 (26... Nxe7 27. Bd4+) 27. Rxh7+ Kg8 28. Bxe6+ Rf7 29. Rxf7 Qxe7 30. Rxe7+ Kh8 31. Bxf5 fxe3 32. Bxc8) 26... Bc6 {[%emt 0:00:45]} 27. Bb6 {[%emt 0:01:10]} Qe7 {[%emt 0:01:25]} 28. Rg1 {[%emt 0:00:30]} Nc4 {[%emt 0:04:44]} 29. Bxc6 {[%emt 0:00:29]} bxc6 {[%emt 0:00:19]} 30. Bf2 {[%emt 0:00:30]} Nxh6 {[%emt 0:00:22]} 31. Bd4+ {[%emt 0:00:21]} Ne5 {[%emt 0:00:21]} 32. Qxh6 {[%emt 0:00:02]} c5 {[%emt 0:00:59]} 33. Bf2 {[%emt 0:00:46]} Rg8 {[%emt 0:01:41]} 34. Re1 {[%emt 0:00:51]} Qg5 {[%emt 0:01:56]} 35. Qh3 {[%emt 0:00:16]} (35. Qxg5 $142 Rxg5 36. Bh4) 35... Ng4 {[%emt 0:02:34]} 36. Bh4 {[%emt 0:00:29]} Qf5 {[%emt 0:00:45]} 37. Ne4 {[%emt 0:00:38]} Rcf8 {[%emt 0:02:07]} 38. Qc3+ {[%emt 0:00:19]} Qe5 {[%emt 0:01:50]} 39. Qf3 {[%emt 0:00:31]} Ne3 {[%emt 0:01:04]} 40. a4 {[%emt 0:00:46]} Ng2 {[%emt 0:01:33]} 41. axb5 {[%emt 0:00:31]} Nxe1 {[%emt 0:00:44]} 42. Bxe1 {[%emt 0:00:00]} Re8 {[%emt 0:00:12]} 43. Bc3 {[%emt 0:00:11]} h6 {[%emt 0:01:18]} 44. Qxf4 {[%emt 0:00:22]} Kh7 {[%emt 0:00:55]} 45. Bxe5 {[%emt 0:00:19]} dxe5 {[%emt 0:00:34]} 46. Qf5+ {[%emt 0:00:13]} Kg7 {[%emt 0:00:28]} 47. Nf6 {[%emt 0:00:47]} Ref8 {[%emt 0:00:14]} 48. Nh5+ {[%emt 0:00:01]} Kh8 {[%emt 0:00:23]} 49. Qxe5+ {[%emt 0:00:01]} Kh7 {[%emt 0:00:01]} 50. Nf6+ {[%emt 0:00:14]} 1-0

[Event "14. Deizisauer Herbstopen 2019"]
[Site "Deizisau"]
[Date "2019.10.26"]
[Round "2.9"]
[White "Doering, Stefan"]
[Black "Coellen, Florian"]
[Result "1/2-1/2"]
[ECO "B90"]
[WhiteElo "2025"]
[BlackElo "1873"]
[Annotator "NA"]
[PlyCount "87"]
[EventDate "2019.10.25"]
[EventType "swiss"]
[EventCountry "GER"]
[SourceTitle "playchess.com"]
[Source "ChessBase"]
[SourceQuality "1"]
[TimeControl "5400+30"]

{[%evp 11,83,10,38,25,31,32767,32767,32767,32767,21,32767,32767,32767,32767,33,16,50,14,56,13,0,-14,123,83,95,45,154,112,106,33,99,100,116,120,225,103,127,103,132,32767,32767,68,59,32767,32767,32767,32767,32767,32767,32767,32767,-16,32767,0,-34,-210,-198,32767,32767,32767,32767,32767,32767,32767,32767,32767,32767,32767,32767,32767,0,0,32767,0]} 1. e4 {[%emt 0:00:00]} c5 {[%emt 0:00:00]} 2. Nf3 {[%emt 0:00:00]} d6 {[%emt 0:00:00]} 3. d4 {[%emt 0:00:00]} cxd4 {[%emt 0:00:00]} 4. Nxd4 {[%emt 0:00:00]} Nf6 {[%emt 0:00:00]} 5. Nc3 {[%emt 0:00:00]} a6 {[%emt 0:00:00]} 6. f3 {[%emt 0:00:30]} e5 {[%emt 0:00:07]} 7. Nb3 {[%emt 0:00:10]} Be7 {[%emt 0:00:09]} 8. Be3 {[%emt 0:00:28]} Be6 {[%emt 0:00:07]} 9. Qd2 {[%emt 0:00:13]} O-O {[%emt 0:00:08]} 10. O-O-O {[%emt 0:00:14]} a5 {[%emt 0:00:12]} 11. a4 {[%emt 0:01:26]} Nc6 {[%emt 0:01:40] B90: Sicilian Najdorf: Unusual White 6th moves, 6 Be3 Ng4 and 6 Be3 e5} 12. Kb1 {[%emt 0:02:31]} Nb4 {[%emt 0:02:22]} 13. g4 {[%emt 0:01:41]} Nd7 {[%emt 0:04:02] [#]} 14. Nd5 $146 {[%emt 0:08:29]} (14. g5 $16) ({Predecessor:} 14. h4 Nb6 15. Qf2 Nc4 16. Bxc4 Bxc4 17. f4 Qc8 18. fxe5 dxe5 19. Nc5 Rd8 20. Rxd8+ Bxd8 {1-0 (37) Bologan,V (2658)-Smeets,J (2538) Wijk aan Zee 2007}) 14... Bxd5 $1 {[%emt 0:02:50]} 15. exd5 {[%emt 0:00:05]} Nf6 {[%emt 0:18:38]} 16. Bf2 {[%emt 0:14:26]} Qc7 {[%emt 0:13:35]} (16... Nfxd5 $11 {keeps the balance.} 17. h4 Nc7) 17. c3 {[%emt 0:05:09]} Na6 {[%emt 0:00:57]} 18. Bb5 {[%emt 0:01:02]} Nd7 {[%emt 0:03:33]} ({Black should try} 18... Qc8) 19. f4 {[%emt 0:09:56]} Qd8 {[%emt 0:09:12]} 20. f5 {[%emt 0:08:15]} (20. Bg3 $16) 20... Bg5 {[%emt 0:03:30]} (20... Nc7 $11 {remains equal.}) 21. Qe2 {[%emt 0:00:25]} Bf4 {[%emt 0:05:38]} 22. h4 {[%emt 0:04:51]} g6 {[%emt 0:01:47]} (22... f6 $16) 23. Be3 {[%emt 0:08:31]} (23. fxg6 $18 {is more deadly.} fxg6 24. h5) 23... Nc7 {[%emt 0:04:45]} 24. Bxf4 {[%emt 0:03:02]} exf4 {[%emt 0:00:37]} 25. Qc4 {[%emt 0:03:34]} Nxb5 {[%emt 0:02:10]} 26. Qxb5 {[%emt 0:00:18]} Ne5 {[%emt 0:00:29]} 27. fxg6 {[%emt 0:01:50]} hxg6 {[%emt 0:04:36]} 28. h5 {[%emt 0:00:58]} g5 {[%emt 0:03:50]} 29. Nd4 {[%emt 0:02:42]} Ra6 {[%emt 0:04:16]} 30. Qe2 {[%emt 0:00:25]} Qd7 {[%emt 0:01:46]} 31. Qc2 {[%emt 0:05:29]} Rb6 {[%emt 0:01:23]} 32. Qf5 {[%emt 0:03:13]} Qxf5+ {[%emt 0:01:00]} 33. gxf5 $2 {[%emt 0:00:58]} (33. Nxf5 $11 {and White is okay.} Nc4 34. Rh2) 33... Kh7 {[%emt 0:01:32]} 34. Rdg1 {[%emt 0:01:53]} Rg8 {[%emt 0:00:16]} 35. f6 {[%emt 0:00:51]} Nd7 {[%emt 0:02:08]} 36. Re1 {[%emt 0:00:39]} Nxf6 {[%emt 0:01:06]} 37. Re7 {[%emt 0:00:01]} Nxd5 {[%emt 0:00:29]} 38. Rxf7+ {[%emt 0:00:32]} Rg7 {[%emt 0:00:02]} 39. Rxg7+ {[%emt 0:00:22]} Kxg7 {[%emt 0:00:01]} 40. h6+ {[%emt 0:00:09] [#]} Kh7 $11 {[%emt 0:00:18]} (40... Kh8 $1 $19 41. Kc1 g4) 41. Ne6 {[%emt 0:00:01]} Nxc3+ {[%emt 0:00:24]} 42. Ka1 {[%emt 0:00:29]} Ne4 {[%emt 0:00:56]} 43. Nf8+ {[%emt 0:00:22]} Kh8 {[%emt 0:00:15]} 44. Ng6+ {[%emt 0:00:05]} 1/2-1/2

[Event "14. Deizisauer Herbstopen 2019"]
[Site "Deizisau"]
[Date "2019.10.26"]
[Round "3.1"]
[White "Dgebuadze, Alexandre"]
[Black "Kraft, Julian"]
[Result "1-0"]
[ECO "A34"]
[WhiteElo "2472"]
[BlackElo "2062"]
[Annotator "ChessBase"]
[PlyCount "83"]
[EventDate "2019.10.25"]
[EventType "swiss"]
[EventCountry "GER"]
[SourceTitle "playchess.com"]
[Source "ChessBase"]
[SourceQuality "1"]
[TimeControl "5400+30"]

1. c4 {[%emt 0:00:00]} c5 {[%emt 0:01:28]} 2. Nc3 {[%emt 0:01:38]} g6 {[%emt 0:00:07]} 3. g3 {[%emt 0:00:47]} Bg7 {[%emt 0:00:13]} 4. Nh3 {[%emt 0:01:01]} e5 {[%emt 0:01:17]} 5. d3 {[%emt 0:00:18]} Ne7 {[%emt 0:00:26]} 6. Bg2 {[%emt 0:01:48]} d6 {[%emt 0:00:41]} 7. f4 {[%emt 0:06:03]} Nbc6 {[%emt 0:12:05]} 8. Nf2 {[%emt 0:09:42]} h5 {[%emt 0:18:41]} 9. fxe5 {[%emt 0:10:02]} Nxe5 {[%emt 0:00:25]} 10. Nfe4 {[%emt 0:02:14]} Nf5 {[%emt 0:01:26]} 11. Nd5 {[%emt 0:04:25]} Be6 {[%emt 0:07:32]} 12. Bg5 {[%emt 0:03:05]} Qa5+ {[%emt 0:00:24]} 13. Bd2 {[%emt 0:16:55]} Qd8 {[%emt 0:00:06]} 14. Bg5 {[%emt 0:05:44]} Qa5+ {[%emt 0:00:02]} 15. Qd2 {[%emt 0:00:23]} Qxd2+ {[%emt 0:00:25]} 16. Kxd2 {[%emt 0:00:07]} Bxd5 {[%emt 0:15:55]} 17. cxd5 {[%emt 0:00:21]} Rf8 {[%emt 0:06:56]} 18. Bh3 {[%emt 0:03:00]} Ng4 {[%emt 0:01:59]} 19. Bxg4 {[%emt 0:02:10]} hxg4 {[%emt 0:00:09]} 20. Nf6+ {[%emt 0:00:10]} Bxf6 {[%emt 0:04:45]} 21. Bxf6 {[%emt 0:00:05]} Kd7 {[%emt 0:01:46]} 22. Raf1 {[%emt 0:01:46]} Rae8 {[%emt 0:07:31]} 23. e4 {[%emt 0:01:06]} Nd4 {[%emt 0:00:28]} 24. Rf4 {[%emt 0:01:19]} Nf3+ {[%emt 0:03:58]} 25. Ke3 {[%emt 0:01:47]} Ne5 {[%emt 0:01:07]} 26. Rhf1 {[%emt 0:04:52]} g5 {[%emt 0:05:29]} 27. Rf5 {[%emt 0:02:08]} Nf3 {[%emt 0:01:58]} 28. Rf2 {[%emt 0:02:11]} Rg8 {[%emt 0:01:08]} 29. h3 {[%emt 0:04:11]} Nd4 {[%emt 0:00:36]} 30. Bxd4 {[%emt 0:02:18]} cxd4+ {[%emt 0:00:09]} 31. Kxd4 {[%emt 0:00:06]} gxh3 {[%emt 0:00:17]} 32. Rxf7+ {[%emt 0:00:20]} Re7 {[%emt 0:00:40]} 33. g4 {[%emt 0:01:08]} Rh8 {[%emt 0:03:30]} 34. Rxe7+ {[%emt 0:00:04]} Kxe7 {[%emt 0:00:01]} 35. Rh2 {[%emt 0:00:08]} Kf6 {[%emt 0:03:11]} 36. Ke3 {[%emt 0:00:06]} Rh4 {[%emt 0:00:05]} 37. Kf3 {[%emt 0:02:19]} Ke5 {[%emt 0:00:46]} 38. Kg3 {[%emt 0:00:07]} Kd4 {[%emt 0:00:41]} 39. Rxh3 {[%emt 0:00:08]} Kxd3 {[%emt 0:00:31]} 40. e5 {[%emt 0:00:28]} dxe5 {[%emt 0:00:35]} 41. d6 {[%emt 0:00:06]} e4 {[%emt 0:00:27]} 42. d7 {[%emt 0:00:06]} 1-0

[Event "14. Deizisauer Herbstopen 2019"]
[Site "Deizisau"]
[Date "2019.10.26"]
[Round "3.2"]
[White "Neiss, Josef Martin"]
[Black "Krassowizkij, Jaroslaw"]
[Result "0-1"]
[ECO "A09"]
[WhiteElo "2039"]
[BlackElo "2436"]
[Annotator "NA"]
[PlyCount "44"]
[EventDate "2019.10.25"]
[EventType "swiss"]
[EventCountry "GER"]
[SourceTitle "playchess.com"]
[Source "ChessBase"]
[SourceQuality "1"]
[TimeControl "5400+30"]

1. Nf3 {[%emt 0:00:00]} d5 {[%emt 0:00:00]} 2. c4 {[%emt 0:00:00]} d4 {[%emt 0:00:00]} 3. b4 {[%emt 0:01:20]} f6 {[%emt 0:00:14]} 4. e3 {[%emt 0:01:52]} e5 {[%emt 0:00:07]} 5. c5 {[%emt 0:03:26]} a5 {[%emt 0:00:06]} 6. Bb5+ {[%emt 0:02:15]} c6 {[%emt 0:00:31]} 7. Bc4 {[%emt 0:00:41]} axb4 {[%emt 0:00:14]} 8. Nxe5 {[%emt 0:02:11]} fxe5 {[%emt 0:00:09]} 9. Qh5+ {[%emt 0:00:10]} g6 {[%emt 0:00:06]} 10. Qxe5+ {[%emt 0:00:39]} Qe7 {[%emt 0:00:05]} 11. Qxh8 {[%emt 0:01:26]} Nf6 {[%emt 0:00:04]} 12. Bb2 {[%emt 0:02:07]} Be6 {[%emt 0:01:10]} 13. Bxd4 {[%emt 0:06:42]} Nbd7 {[%emt 0:00:48]} 14. Bxe6 {[%emt 0:03:48]} Qxe6 {[%emt 0:00:50]} 15. a3 {[%emt 0:03:28]} b3 {[%emt 0:06:05]} 16. Nc3 {[%emt 0:01:45]} O-O-O {[%emt 0:19:51]} 17. Ne4 {[%emt 0:06:52]} Nxe4 {[%emt 0:01:35]} 18. Qxh7 {[%emt 0:00:44]} Bxc5 {[%emt 0:00:17]} 19. O-O {[%emt 0:02:50]} Bxd4 {[%emt 0:00:38]} 20. exd4 {[%emt 0:00:04]} Nxd2 {[%emt 0:02:24]} 21. Rfe1 {[%emt 0:01:27]} b2 {[%emt 0:01:11]} 22. Rad1 {[%emt 0:00:47]} Qf5 {[%emt 0:00:26]} 0-1

[Event "14. Deizisauer Herbstopen 2019"]
[Site "Deizisau"]
[Date "2019.10.26"]
[Round "3.3"]
[White "Frolik, Erhard"]
[Black "Doeserich, Juergen"]
[Result "1-0"]
[ECO "B22"]
[WhiteElo "2317"]
[BlackElo "1975"]
[Annotator "NA"]
[PlyCount "67"]
[EventDate "2019.10.25"]
[EventType "swiss"]
[EventCountry "GER"]
[SourceTitle "playchess.com"]
[Source "ChessBase"]
[SourceQuality "1"]
[TimeControl "5400+30"]

1. e4 {[%emt 0:00:00]} c5 {[%emt 0:03:13]} 2. c3 {[%emt 0:00:00]} d5 {[%emt 0:00:17]} 3. exd5 {[%emt 0:00:05]} Qxd5 {[%emt 0:00:14]} 4. d4 {[%emt 0:00:09]} Nf6 {[%emt 0:00:19]} 5. Nf3 {[%emt 0:00:11]} e6 {[%emt 0:00:11]} 6. Na3 {[%emt 0:00:55]} Nc6 {[%emt 0:04:34]} 7. Nc2 {[%emt 0:09:54]} Be7 {[%emt 0:04:33]} 8. Be2 {[%emt 0:00:56]} O-O {[%emt 0:01:28]} 9. O-O {[%emt 0:01:05]} Rd8 {[%emt 0:07:07]} 10. Be3 {[%emt 0:02:32]} cxd4 {[%emt 0:02:51]} 11. Ncxd4 {[%emt 0:00:29]} Bd7 {[%emt 0:04:39]} 12. Qc2 {[%emt 0:12:50]} Be8 {[%emt 0:10:23]} 13. Rfd1 {[%emt 0:02:47]} Qa5 {[%emt 0:01:35]} 14. Qb3 {[%emt 0:03:05]} Nxd4 {[%emt 0:04:23]} 15. Rxd4 {[%emt 0:01:02]} Rxd4 {[%emt 0:03:13]} 16. Bxd4 {[%emt 0:01:44]} Qc7 {[%emt 0:02:34]} 17. Be5 {[%emt 0:04:02]} Qc6 {[%emt 0:05:30]} 18. Bd4 {[%emt 0:06:29]} Qc7 {[%emt 0:06:31]} 19. h3 {[%emt 0:02:34]} b5 {[%emt 0:03:31]} 20. Bxb5 {[%emt 0:05:24]} Rb8 {[%emt 0:07:05]} 21. Qc4 {[%emt 0:00:43]} Qxc4 {[%emt 0:00:06]} 22. Bxc4 {[%emt 0:00:05]} Rxb2 {[%emt 0:00:07]} 23. Bxa7 {[%emt 0:02:40]} Ne4 {[%emt 0:00:45]} 24. Bd4 {[%emt 0:00:35]} Bf6 {[%emt 0:00:43]} 25. Ne5 {[%emt 0:12:12]} Bxe5 {[%emt 0:01:40]} 26. Bxe5 {[%emt 0:00:05]} Nxf2 {[%emt 0:00:21]} 27. a4 {[%emt 0:02:35]} Bc6 {[%emt 0:02:21]} 28. a5 {[%emt 0:01:56]} Ne4 {[%emt 0:00:49]} 29. a6 {[%emt 0:00:23]} Nd2 {[%emt 0:01:29]} 30. a7 {[%emt 0:00:46]} Ba8 {[%emt 0:00:15]} 31. Rd1 {[%emt 0:02:42]} Kf8 {[%emt 0:02:46]} 32. Bd3 {[%emt 0:06:15]} Nb3 {[%emt 0:02:27]} 33. Bf1 {[%emt 0:01:00]} Nd2 {[%emt 0:02:16]} 34. Bf4 {[%emt 0:01:34]} 1-0

[Event "14. Deizisauer Herbstopen 2019"]
[Site "Deizisau"]
[Date "2019.10.26"]
[Round "3.4"]
[White "Gustain, Marc"]
[Black "Meier, Marlon"]
[Result "1-0"]
[ECO "B06"]
[WhiteElo "2179"]
[BlackElo "1929"]
[Annotator "NA"]
[PlyCount "69"]
[EventDate "2019.10.25"]
[EventType "swiss"]
[EventCountry "GER"]
[SourceTitle "playchess.com"]
[Source "ChessBase"]
[SourceQuality "1"]
[TimeControl "5400+30"]

1. e4 {[%emt 0:00:00]} g6 {[%emt 0:00:00]} 2. d4 {[%emt 0:00:00]} Bg7 {[%emt 0:00:00]} 3. Nf3 {[%emt 0:00:19]} d6 {[%emt 0:00:00]} 4. Bc4 {[%emt 0:00:15]} e6 {[%emt 0:00:01]} 5. O-O {[%emt 0:02:34]} Ne7 {[%emt 0:00:20]} 6. Bb3 {[%emt 0:00:11]} Nd7 {[%emt 0:00:51]} 7. Re1 {[%emt 0:00:13]} b6 {[%emt 0:01:19]} 8. Nbd2 {[%emt 0:00:09]} h6 {[%emt 0:00:42]} 9. Nf1 {[%emt 0:00:24]} Bb7 {[%emt 0:00:43]} 10. Ng3 {[%emt 0:00:08]} O-O {[%emt 0:06:01]} 11. h4 {[%emt 0:01:23]} c5 {[%emt 0:03:43]} 12. c3 {[%emt 0:00:13]} cxd4 {[%emt 0:05:37]} 13. cxd4 {[%emt 0:00:58]} e5 {[%emt 0:01:18]} 14. h5 {[%emt 0:05:25]} g5 {[%emt 0:00:35]} 15. Be3 {[%emt 0:02:24]} Rc8 {[%emt 0:03:39]} 16. Qd2 {[%emt 0:02:15]} Kh8 {[%emt 0:05:56]} 17. Rad1 {[%emt 0:03:46]} f5 {[%emt 0:04:24]} 18. Nxg5 {[%emt 0:20:20]} hxg5 {[%emt 0:00:47]} 19. Bxg5 {[%emt 0:00:35]} f4 {[%emt 0:02:49]} 20. Nf5 {[%emt 0:01:16]} Nf6 {[%emt 0:04:50]} 21. h6 {[%emt 0:03:52]} Nxf5 {[%emt 0:02:16]} 22. exf5 {[%emt 0:05:44]} Bxh6 {[%emt 0:07:26]} 23. Bxh6 {[%emt 0:00:03]} Ne4 {[%emt 0:18:47]} 24. Rxe4 {[%emt 0:07:22]} Bxe4 {[%emt 0:00:09]} 25. Qe2 {[%emt 0:02:45]} Qh4 {[%emt 0:17:10]} 26. Bxf8 {[%emt 0:04:40]} f3 {[%emt 0:00:53]} 27. gxf3 {[%emt 0:02:09]} Bxf5 {[%emt 0:05:29]} 28. Bxd6 {[%emt 0:03:07]} e4 {[%emt 0:01:30]} 29. Bg3 {[%emt 0:03:55]} Qh5 {[%emt 0:00:32]} 30. Qe3 {[%emt 0:02:26]} Rc6 {[%emt 0:01:03]} 31. Qf4 {[%emt 0:02:00]} Rg6 {[%emt 0:02:10]} 32. Rc1 {[%emt 0:02:51]} exf3 {[%emt 0:00:20]} 33. Qb8+ {[%emt 0:01:31]} Kh7 {[%emt 0:00:02]} 34. Rc7+ {[%emt 0:00:37]} Kh6 {[%emt 0:00:08]} 35. Qh8+ {[%emt 0:00:44]} 1-0